Cogmind - Beta 10.2 @@@ ROGUE MODE // 2022.01.17 @ 11:25:29 Player: SURFACESEEKER Result: Destroyed by S-10 Pest with Light Assault Rifle Performance ------------- Evolutions (1) 500 Regions Visited (2) 400 Robots Destroyed (16) 80 Value Destroyed (283) 283 Prototype IDs (0) 0 Alien Tech Used (0) 0 Bonus (0) 0 TOTAL SCORE: 1263 Bonus ------- None Cogmind --------- Core Integrity 0/400 Matter 203/300 Energy 71/100 System Corruption 0% Temperature Cool (0) Movement Core (50) Location -9/Materials Parts ------- > --- POWER (1) -------- (None) > --- PROPULSION (2) --- (None) > --- UTILITY (4) ------ Seismic Analyzer > --- WEAPON (2) ------- (None) > --- INVENTORY (4) ---- Seismic Analyzer Peak State ------------ > --- POWER ------------ Light Ion Engine > --- PROPULSION ------- Wheel Wheel > --- UTILITY ---------- Improved Terrain Scanner Seismic Analyzer > --- WEAPON ----------- Assault Rifle Assault Rifle > --- INVENTORY -------- Small Storage Unit Small Laser Mining Laser [Rating: 8] Favorites ----------- Power Light Ion Engine Engine Light Ion Engine Propulsion Wheel Wheel Wheel Utility Seismic Analyzer Device Heat Sink Storage Medium Storage Unit Processor Seismic Analyzer Weapon Assault Rifle Energy Gun Small Laser Energy Cannon Beam Cannon Ballistic Gun Assault Rifle Special Weapon Mining Laser Build | -11 -10 -9 ------- Run | Scr Mat Mat Slots Evolved 2 | . . 2 Power . | . . . Propulsion . | . . . Utility 2 | . . 2 Weapon . | . . . Parts Attached 19 | 7 6 6 Power 2 | 1 . 1 Engine 2 | 1 . 1 Core . | . . . Reactor . | . . . Propulsion 3 | 2 1 . Treads . | . . . Leg . | . . . Wheel 3 | 2 1 . Hover . | . . . Flight . | . . . Utility 8 | 2 5 1 Device 4 | 1 3 . Storage 3 | . 2 1 Processor 1 | 1 . . Hackware . | . . . Protection . | . . . Artifact . | . . . Weapon 6 | 2 . 4 Energy Gun 1 | . . 1 Energy Cannon 2 | . . 2 Ballistic Gun 2 | 2 . . Ballistic Cannon . | . . . Launcher . | . . . Special Weapon 1 | . . 1 Impact Weapon . | . . . Slashing Weapon . | . . . Piercing Weapon . | . . . Special Melee Weapon . | . . . Unidentified Prototypes . | . . . Parts Lost 13 | . 3 10 Power 2 | . 1 1 Propulsion 3 | . 1 2 Utility 2 | . 1 1 Weapon 6 | . . 6 Highest Loss Streak 10 | . 1 10 Average Slot Usage (%) 80 | . 84 64 Engine 8 | . 10 . Wheel 24 | . 26 15 Device 5 | . 4 9 Storage 1 | . . 10 Processor 13 | . 14 11 Ballistic Gun 25 | . 28 14 Naked Turns . | . . . Heaviest Build 17 | 8 12 17 Greatest Support 20 | 20 20 20 Greatest Overweight (x) 2 | . . 2 Average Overweight (x) . | . . . Largest Inventory Capacity 8 | 4 8 8 Average Capacity 4 | 4 4 7 Most Carried 6 | 4 4 6 Average Carried 3 | 2 3 4 Final Capacity 4 | 4 4 4 Final Carried 4 | 4 4 1 Class Distribution -------------------- 100% | Mutant Dominant Class ---------------- Mutant | -10/Materials Mutant | -9/Materials Resources | -11 -10 -9 ----------- Run | Scr Mat Mat Matter Collected 534 | 129 160 245 Remotely . | . . . Salvage Created 474 | 47 160 267 Parts 28 | 10 9 9 Haulers Intercepted . | . . . Recyclers Shooed . | . . . Parts Field Recycled . | . . . Retrieved Matter . | . . . Parts Self-Destructed . | . . . Prevented . | . . . Kills | -11 -10 -9 ------- Run | Scr Mat Mat Combat Hostiles Destroyed 10 | . 6 4 Guns 8 | . 6 2 Cannons 2 | . . 2 Classes Destroyed 5 | 1 2 2 Tunneler 4 | 3 . 1 Recycler 1 | . . 1 Watcher 1 | . . 1 Swarmer 5 | . 3 2 Grunt 5 | . 3 2 Best Kill Streak 5 | 3 3 5 Combat Bots Only 4 | . 3 4 Max Kills in Single Turn 1 | 1 1 1 Gunslinging . | . . . Exploded . | . . . Melee . | . . . Uniques/NPCs Destroyed . | . . . Combat | -11 -10 -9 -------- Run | Scr Mat Mat Damage Taken 1307 | . 405 902 Core 525 | . 120 405 Absorbed by Shields . | . . . Core Remaining (%) 76 | 100 52 . Volleys Fired 63 | 4 36 23 Largest 2 | 2 2 2 Hottest 80 | 40 40 80 Shots Fired 117 | 8 72 37 Gun 105 | 8 72 25 Cannon 12 | . . 12 Launcher . | . . . Special . | . . . Kinetic 102 | 8 72 22 Thermal 15 | . . 15 Explosive . | . . . Electromagnetic . | . . . Robot Hit Streak 5 | 2 5 5 Robot Miss Streak 12 | 1 12 3 Penetration Max . | . . . Secondary Targets 1 | . 1 . Max Gunslinging Chain 1 | . 1 . Shots Hit Robots 51 | 4 25 22 Core Hits 23 | 3 9 11 Critical Hits . | . . . Critical Kills . | . . . Critical Parts Destroyed . | . . . Melee Attacks . | . . . Impact . | . . . Slashing . | . . . Piercing . | . . . Sneak Attacks . | . . . Combat Hostiles . | . . . Follow-up Attacks . | . . . Damage Inflicted 818 | 71 415 332 Guns 695 | 71 415 209 Cannons 123 | . . 123 Explosions . | . . . Melee . | . . . Ramming . | . . . Kinetic 660 | 71 415 174 Thermal 158 | . . 158 Explosive . | . . . Electromagnetic . | . . . Impact . | . . . Slashing . | . . . Piercing . | . . . Highest Corruption . | . . . Average Corruption . | . . . Corruption Purged . | . . . Overload Shots . | . . . Overflow Damage . | . . . Projectiles . | . . . Explosions . | . . . Melee . | . . . Knockbacks . | . . . Impact . | . . . Kinetic . | . . . Secondary . | . . . Self-Inflicted Damage . | . . . Shots . | . . . Rammed . | . . . Targets Rammed . | . . . Kicked . | . . . Crushed . | . . . Highest Temperature 8 | . 8 7 Average Temperature 4 | . 3 4 Received Heat Transfer 426 | . 135 291 Siege Activations . | . . . Robots Corrupted . | . . . Combat Hostiles . | . . . Parts Fried . | . . . Impact Corruptions . | . . . Robots Melted . | . . . Combat Hostiles . | . . . Parts Melted . | . . . Heat Transferred 334 | . . 334 Parts Sabotaged . | . . . Parts Stolen . | . . . Parts Stripped . | . . . Power Chain Reactions . | . . . Missiles Intercepted . | . . . Alert | -11 -10 -9 ------- Run | Scr Mat Mat Peak Influence 109 | 15 109 74 Initial 9 | . 9 8 Average 41 | 3 48 39 Maximum Alert Level . | . . . Low Security (%) 100 | 100 100 100 Level 1 . | . . . Level 2 . | . . . Level 3 . | . . . Level 4 . | . . . Level 5 . | . . . High Security . | . . . Max Security . | . . . Squads Dispatched 1 | . . 1 Investigation . | . . . Extermination . | . . . Reinforcement 1 | . . 1 Assault . | . . . Garrison . | . . . Intercept . | . . . Construction Impeded . | . . . Haulers Reinforced . | . . . Stealth | -11 -10 -9 --------- Run | Scr Mat Mat Distress Signals 1 | . . 1 Communications Jammed . | . . . Distress Signals . | . . . Times Spotted 20 | . 7 13 Peak Tracking Total 11 | . 3 11 Tactical Retreats . | . . . Traps | -11 -10 -9 ------- Run | Scr Mat Mat Traps Triggered . | . . . Indirectly . | . . . Trap Hack Attempts . | . . . Triggered . | . . . Disarmed . | . . . Reprogrammed . | . . . Reused . | . . . Traps Extracted . | . . . Installed . | . . . Triggered . | . . . Machines | -11 -10 -9 ---------- Run | Scr Mat Mat Machines Disabled . | . . . Max in Single Turn . | . . . Machines Sabotaged . | . . . Garrisons Compromised . | . . . Overloaded Fab Kills . | . . . Fab Network Shutdowns . | . . . Hacking | -11 -10 -9 --------- Run | Scr Mat Mat Machines Accessed 2 | . 1 1 Terminals 2 | . 1 1 Fabricators . | . . . Repair Stations . | . . . Recycling Units . | . . . Scanalyzers . | . . . Garrison Access . | . . . Total Hacks 5 | . 3 2 Successful 3 | . 2 1 Failed 2 | . 1 1 Catastrophic . | . . . Database Lockouts . | . . . Manual 3 | . 1 2 Terminals 5 | . 3 2 Fabricators . | . . . Repair Stations . | . . . Recycling Units . | . . . Scanalyzers . | . . . Garrison Access . | . . . Terminal Hacks 2 | . 2 . Record 2 | . 2 . Fabricator Hacks . | . . . Repair Station Hacks . | . . . Recycling Unit Hacks . | . . . Scanalyzer . | . . . Garrison Access Hacks . | . . . Unauthorized Hacks 1 | . . 1 Terminals 1 | . . 1 Botnet 1 | . . 1 Fabricators . | . . . Repair Stations . | . . . Recycling Units . | . . . Scanalyzers . | . . . Garrison Access . | . . . Data Cores Recovered . | . . . Used . | . . . Hacking Detections 2 | . 1 1 Full Trace Events 1 | . 1 . Feedback Events . | . . . Feedback Blocked . | . . . Robot Schematics Acquired . | . . . Robots Built . | . . . Matter . | . . . Time . | . . . Total Robot Build Rating . | . . . Part Schematics Acquired . | . . . Parts Built . | . . . Matter . | . . . Time . | . . . Total Part Build Rating . | . . . Parts Repaired . | . . . Time . | . . . Parts Recycled . | . . . Recycled Matter . | . . . Retrieved Matter . | . . . Retrieved Components . | . . . Parts Scanalyzed . | . . . Part Schematics Acquired . | . . . Parts Damaged . | . . . Bothacking | -11 -10 -9 ------------ Run | Scr Mat Mat Used RIF Installer . | . . . Robots Hacked . | . . . Non-combat . | . . . Combat . | . . . Robot Hacks Applied . | . . . Relay Couplers Released . | . . . Robots Rewired . | . . . Allies Hacked . | . . . Hacks Repelled . | . . . Allies | -11 -10 -9 -------- Run | Scr Mat Mat Total Allies . | . . . Largest Group . | . . . Highest-Rated Group . | . . . Highest-Rated Ally . | . . . Total Orders . | . . . Ally Attacks . | . . . Total Damage . | . . . Kills . | . . . Allies Corrupted . | . . . Allies Melted . | . . . Intel | -11 -10 -9 ------- Run | Scr Mat Mat Robot Analysis Total . | . . . Derelict Logs Recovered . | . . . Drone Launches . | . . . Drone Recoveries . | . . . Exploration | -11 -10 -9 ------------- Run | Scr Mat Mat Turns Passed 810 | 89 583 138 Spaces Moved 678 | 81 507 90 Core 38 | 17 . 21 Treads . | . . . Legs . | . . . Wheels 640 | 64 507 69 Hover . | . . . Flight . | . . . Fastest Speed 50 | 50 80 50 Average Speed 78 | 73 80 75 Slowest Speed 150 | 80 80 150 Overloaded Moves . | . . . Propulsion Burnouts . | . . . Robots Hopped . | . . . Cave-ins Triggered . | . . . Exploration Rate (%) 15 | 3 29 14 Regions Visited 2 Branch Regions . Pre-discovered Areas . | . . . Known Exits Taken . | . . . Unknown Exits Taken 2 | 1 1 . Scrap Searched . | . . . Spaces Dug . | . . . Terrain Destroyed . | . . . Melee . | . . . Projectile . | . . . AOE . | . . . Terrain Rammed . | . . . Walls Destroyed . | . . . Machines Disabled . | . . . Actions | -11 -10 -9 --------- Run | Scr Mat Mat Total 833 | 101 609 123 Wait 59 | . 59 . Move 676 | 80 506 90 Hop . | . . . Pick Up 14 | 10 1 3 Fast Attach 3 | 1 2 . Attach 12 | 6 . 6 Detach . | . . . Swap 4 | . 4 . Drop 2 | . 1 1 Fire 63 | 4 36 23 Melee . | . . . Ram . | . . . Kick . | . . . Crush . | . . . Escape Stasis . | . . . Rewire . | . . . Trap . | . . . Miscellaneous . | . . . Route ------- -11/Scrapyard -10/Materials -9/Materials History --------- Turn | Location | Event 17 | -11/Scrapyard | Discovered new exit (range 16) 90 | -11/Scrapyard | Entered Materials 303 | -10/Materials | Build established: Mutant 356 | -10/Materials | Discovered new exit (range 7) 673 | -10/Materials | Entered another Materials area 673 | -9/Materials | Evolved 2 slots: Utility x2 798 | -9/Materials | Core integrity fell below 50% 803 | -9/Materials | Core integrity fell below 20% 811 | -9/Materials | Destroyed by S-10 Pest with Light Assault Rifle Last Messages --------------- 00777_ Wheel destroyed. 00779_ R-06 Scavenger collects Lgt. Assault Rifle. 00779_ Assault Rifle destroyed. 00781_ Mining Laser destroyed. 00784_ R-06 Scavenger collects Flight Unit. 00784_ K-01 Serf collects debris. 00787_ G-34 Mercenary destroyed. 00787_ K-01 Serf collects debris. 00789_ G-34 Mercenary destroyed. 00791_ K-01 Serf collects debris. 00792_ Beam Cannon destroyed. 00793_ Heat Sink destroyed. 00795_ K-01 Serf collects debris. 00797_ Sml. Laser destroyed. 00798_ K-01 Serf collects debris. 00799_ Acquired 48 matter. 00801_ Dropped Med. Storage Unit. 00801_ K-01 Serf destroyed. 00801_ Acquired 30 matter. 00802_ Extracted 50 matter. Map ----- +----------------------------------------------------+ | ????????????????????????? ?????????????? | | ????????????????????????? #?????????????? | | ?????????????????????????? #?????????????? | | ??????????????????????????" ??????????????? | | ?????????????????????????""" ??????????????? | | ????????????????????????"""" ??????????????? | | ?????????????????????? ?"""" ??????????????? | | ??????????????????????? """ ??????????????? | | ????????????????????????? ??????????????? | | ?????????????????????????? % #??????????????? | | ??????????????????????????" #??????????????? | | ????????????????????????"""" %#??????????????? | | ????????????????????" ?""""" #/######?????????? | | ????????????????????" """"" #%!= #?????????? | | ????????????????????? """ # = * #?????????? | | ?????????????????????? # ! #?????????? | | ??????????????????????? # #?????????? | | ??????????????????????? """ # % #?????????? | | ??????????????? ? ?? """"" # % #?????????? | | ??????????????" """"" ###/############## | | ??????????????T ]] """"" | | ??????????????" ][ """ | | ????????????? | | ????????????? ! #################+ | | ????????????????#############+#######????????????? | | ???????????????????????# @ s #????????????? | | ???????????????????????# """ """ #????????????? | | ???????????????????????# """"""""" [#????????????? | | ???????????????????????# """"" #????????????? | | ???????????????????????# #????????????? | | ???????????????????????#############?????????????? | | | | | | | | | | | | | | | | | | | | | | | | | | | | | | | | | | | | | | | +----------------------------------------------------+ Best States ------------- Heat Dissipation 38 Energy Generation 10 Energy Capacity 125 Matter Stores 203 Matter Capacity 300 Sight Range 16 Terrain Scan Range 16 Terrain Scan Density 60 Evasion (%) 50 Item Schematics ----------------- None Robot Schematics ------------------ None Fabricated ------------ Nothing Alien Tech Used ----------------- None Achievements -------------- None Challenges ------------ None Game ------ Seed LightLayeredMicrothruster Manual? 0 Play Time 00:16:02 Cumulative 150.4 hours Start 2022.01.17 @ 11:06:21 End 2022.01.17 @ 11:25:29 Sessions 1 Manual Loads 0 Difficulty Rogue Special Mode None Game No. 111 Rogue 111 Adventurer 0 Explorer 0 Win Type - Total 0 Types 0/0/0/0/0/0/0/0/0 Lore% 41 Gallery% 57 Achievement% 39 Wizard Run 0 Options --------- ASCII 0 Keyboard 0 Movement Arrows Keybinds 0 Fullscreen 1 Font 14/Terminus Map View 72x54 Tactical HUD 1 Map Filters NONE Filters NONE Steam 1 RUN: 4511f06a-9b13-4b56-bed6-66301b4b08fc